bitfinex-derivatives/quotes_SOLF0:USTF0_20241120
["timestamp","ask_amount","ask_price","bid_price","bid_amount"]
[1732067215756,16.51005593,235.19,235.0,0.78067636]
[1732067215960,16.51005593,235.19,235.01,0.78067636]
[1732067216157,16.51005593,235.19,235.02,0.78067636]
[1732067216462,16.51005593,235.19,235.03,0.78067636]
[1732067216659,16.51005593,235.19,235.04,0.78067636]
[1732067216861,16.51005593,235.19,234.99,16.51005593]
[1732067217058,16.51005593,235.19,235.0,0.78066508]
[1732067217264,2.1235,235.15,235.06,2.1241]
[1732067217861,2.1235,235.15,235.07,2.1241]
[1732067219867,2.1235,235.15,235.08,2.124]
[1732067220065,2.1232,235.18,235.03,16.51005593]
[1732067220268,0.9095,235.21,235.05,3.28]
[1732067220465,29.17005593,235.27,235.08,16.51005593]
[1732067220669,0.91,235.3,235.12,16.51005593]
[1732067220868,0.91,235.3,235.21,2.1228]
[1732067221062,17.56235593,235.31,235.13,3.28]
[1732067221268,19.68435593,235.31,235.13,3.28]
[1732067221468,16.51005593,235.31,235.13,3.28]
[1732067221667,16.51005593,235.31,235.14,0.78035381]
[1732067222068,2.1221,235.29,235.22,2.1227]
[1732067222572,2.122,235.31,235.23,2.1226]
[1732067222771,32.45005593,235.35,235.16,16.51005593]
[1732067224272,2.122,235.31,235.23,2.1226]
[1732067224477,2.122,235.31,235.16,16.51005593]
[1732067224863,2.122,235.31,235.14,0.78035381]
[1732067224864,13.7153,235.39,235.2,16.51005593]
[1732067225070,1.0553,235.39,235.21,7.0116]
[1732067225567,12.66,235.43,235.24,16.51005593]
[1732067225966,2.1212,235.4,235.32,2.1218]
[1732067226169,12.66,235.44,235.3,3.28]
[1732067226770,2.121,235.41,235.34,2.1217]
[1732067226972,16.51005593,235.45,235.3,3.28]
[1732067227371,16.51005593,235.45,235.34,2.1216]
[1732067227677,16.51005593,235.45,235.3,3.28]
[1732067227678,29.17005593,235.45,235.3,3.28]
[1732067229174,2.121,235.42,235.33,2.1217]
[1732067230077,12.66,235.47,235.3,3.28]
[1732067230468,2.1213,235.38,235.3,5.402]
[1732067230669,2.1213,235.38,235.3,3.28]
[1732067230875,12.66,235.47,235.3,3.28]
[1732067231371,2.1212,235.39,235.31,2.1219]
[1732067231773,29.17005593,235.45,235.3,3.28]
[1732067232081,2.121,235.42,235.35,2.1215]
[1732067232480,2.1211,235.41,235.33,2.1217]
[1732067232978,2.1211,235.41,235.34,2.1216]
[1732067233976,2.1212,235.4,235.32,2.1218]
[1732067234273,12.66,235.49,235.3,3.28]
[1732067234486,2.1212,235.39,235.31,2.1219]
[1732067234681,6.2831,235.5,235.21,3.7316]
[1732067234682,32.45005593,235.42,235.21,3.7316]
[1732067234979,12.66,235.37,235.22,3.28]
[1732067235385,2.1221,235.29,235.22,5.4027]
[1732067235577,2.1221,235.29,235.22,2.1227]
[1732067235883,13.6964,235.37,235.21,3.7316]
[1732067236081,2.122,235.3,235.23,2.1226]
[1732067237482,13.6964,235.37,235.21,3.7316]
[1732067237683,2.122,235.31,235.24,2.1226]
[1732067237886,2.122,235.31,235.21,3.7316]
[1732067237887,1.0364,235.37,235.21,3.7316]
[1732067238189,2.1215,235.37,235.29,2.1221]
[1732067238383,19.79005593,235.42,235.24,16.51005593]
[1732067239285,2.1215,235.36,235.28,2.1221]
[1732067239489,19.79005593,235.42,235.28,2.1221]
[1732067239683,1.0368,235.43,235.27,3.28]
[1732067239890,1.0368,235.43,235.32,16.51005593]
[1732067240284,12.66,235.49,235.32,16.51005593]
[1732067240486,13.6968,235.49,235.32,16.51005593]
[1732067240687,1.0368,235.49,235.32,16.51005593]
[1732067241891,1.0368,235.49,235.33,2.4744]
[1732067242091,1.0368,235.49,235.34,3.28]
[1732067242292,2.1208,235.44,235.38,2.1212]
[1732067242489,1.0368,235.49,235.34,3.28]
[1732067242688,1.0368,235.49,235.34,5.4017]
[1732067242689,2.1207,235.45,235.34,5.4017]
[1732067242887,1.0368,235.49,235.34,3.28]
[1732067243586,2.1211,235.41,235.36,2.1214]
[1732067243795,1.0368,235.49,235.36,2.1214]
[1732067244195,2.1211,235.41,235.36,2.1214]
[1732067244689,1.0368,235.49,235.37,2.1214]
[1732067244994,1.0368,235.49,235.34,3.28]
[1732067245186,2.1209,235.43,235.37,2.1214]
[1732067245586,1.0368,235.49,235.33,2.4744]
[1732067245896,12.74,235.43,235.25,3.1]
[1732067246090,15.84,235.43,235.25,3.1]
[1732067246292,2.1218,235.33,235.27,2.1222]
[1732067247093,2.1218,235.33,235.25,3.1]
[1732067247094,29.25005593,235.4,235.25,5.2224]
[1732067247290,29.25005593,235.4,235.22,2.4232]
[1732067247291,14.6927,235.39,235.23,3.1]
[1732067247789,1.034,235.38,235.23,3.1]
[1732067247986,2.1217,235.34,235.23,5.2226]
[1732067248193,1.034,235.38,235.23,3.1]
[1732067248393,16.51005593,235.36,235.23,3.1]
[1732067248795,2.1218,235.33,235.23,5.2227]
[1732067248987,1.034,235.38,235.23,3.1]
[1732067249388,3.1,235.43,235.27,16.51005593]
[1732067250291,3.1,235.43,235.32,2.1218]
[1732067250492,3.1,235.43,235.27,16.51005593]
[1732067250692,3.1,235.43,235.23,19.61005593]
[1732067250894,2.1213,235.39,235.33,2.1218]
[1732067251292,2.0824,235.48,235.31,3.1]
[1732067251293,15.84,235.47,235.31,3.1]
[1732067251795,3.1,235.47,235.31,3.1]
[1732067251996,3.1,235.47,235.32,1.2961]
[1732067252198,2.1208,235.45,235.38,2.1213]
[1732067252497,174.77529891,235.57,235.42,16.51005593]
[1732067252697,174.77529891,235.57,235.43,3.1]
[1732067252995,16.51005593,235.59,235.43,3.1]
[1732067253193,9.84156074,235.58,235.43,3.1]
[1732067253399,12.74,235.57,235.43,3.1]
[1732067253591,12.74,235.55,235.43,3.1]
[1732067254100,177.87529891,235.6,235.43,3.1]
[1732067254299,12.74,235.58,235.43,3.1]
[1732067254798,12.74,235.59,235.43,3.1]
[1732067255193,21.06536683,235.58,235.43,3.1]
[1732067255391,2.1201,235.52,235.43,3.1]
[1732067255596,8.32536683,235.57,235.43,3.1]
[1732067256697,8.32536683,235.57,235.44,2.1207]
[1732067257293,2.1203,235.5,235.43,3.1]
[1732067257496,12.74,235.55,235.42,2.1209]
[1732067257698,12.74,235.55,235.43,3.1]
[1732067257900,8.32342086,235.54,235.43,3.1]
[1732067258195,12.74,235.55,235.43,3.1]
[1732067258599,12.74,235.57,235.43,3.1]
[1732067258801,12.74,235.57,235.47,2.1205]
[1732067259004,12.74,235.57,235.43,3.1]
[1732067259494,12.74,235.62,235.43,3.1]
[1732067259694,21.06595854,235.61,235.44,2.4309]
[1732067259893,8.32595854,235.6,235.44,2.4309]
[1732067260298,2.1197,235.57,235.5,2.1202]
[1732067260498,2.1197,235.57,235.5,5.2202]
[1732067260902,8.32595854,235.6,235.5,5.2202]
[1732067260903,2.1195,235.59,235.5,3.1]
[1732067261097,8.32595854,235.6,235.5,3.1]
[1732067261304,8.32595854,235.6,235.5,19.61005593]
[1732067261699,10.44535854,235.6,235.5,19.61005593]
[1732067262297,2.1194,235.59,235.51,2.1201]
[1732067262602,8.32595854,235.6,235.5,3.1]
[1732067262903,29.25005593,235.67,235.5,3.1]
[1732067263205,18.17906039,235.66,235.52,2.12]
[1732067263403,8.33392979,235.65,235.53,3.1]
[1732067263604,8.33392979,235.64,235.53,3.1]
[1732067263804,8.33392979,235.63,235.53,3.1]
[1732067264006,8.33392979,235.62,235.53,3.1]
[1732067264299,2.1195,235.59,235.53,3.1]
[1732067265407,2.1195,235.59,235.53,5.22]
[1732067266904,2.1195,235.59,235.53,3.1]
[1732067267496,29.25005593,235.67,235.53,3.1]
[1732067267702,2.1193,235.61,235.54,2.1198]
[1732067268002,12.74,235.69,235.53,3.1]
[1732067268208,2.1191,235.62,235.55,2.1198]
[1732067269007,12.74,235.69,235.53,5.2199]
[1732067269208,16.51005593,235.67,235.53,5.2199]
[1732067269408,29.25005593,235.67,235.5,3.1]
[1732067269605,2.1195,235.58,235.52,2.12]
[1732067270108,29.25005593,235.67,235.52,2.12]
[1732067270918,29.25005593,235.67,235.5,3.1]
[1732067271111,2.1193,235.6,235.5,3.1]
[1732067271304,2.1193,235.6,235.53,2.12]
[1732067271504,12.74,235.69,235.5,3.1]
[1732067271814,2.1194,235.6,235.5,3.1]
[1732067272011,2.1194,235.6,235.54,2.1199]
[1732067272211,16.51005593,235.67,235.46,16.51005593]
[1732067272408,12.74,235.66,235.51,2.1201]
[1732067272716,12.74,235.66,235.47,3.1]
[1732067273720,2.1195,235.58,235.47,3.1]
[1732067274409,12.74,235.66,235.47,3.1]
[1732067274913,12.74,235.66,235.54,2.1198]
[1732067275116,12.74,235.66,235.55,2.92]
[1732067276613,12.74,235.66,235.46,16.51005593]
[1732067277011,12.74,235.66,235.47,2.92]
[1732067279223,2.1197,235.56,235.51,2.1201]
[1732067279419,2.1197,235.56,235.47,2.92]
[1732067279817,2.1197,235.56,235.5,2.1201]
[1732067280014,2.1197,235.56,235.47,2.92]
[1732067280922,12.74,235.66,235.47,2.92]
[1732067281220,12.74,235.66,235.5,2.1201]
[1732067281414,12.74,235.66,235.47,2.92]
[1732067281415,2.1196,235.57,235.47,2.92]
[1732067281811,2.1196,235.57,235.51,2.12]
[1732067282017,2.1197,235.56,235.47,2.92]
[1732067283225,2.1198,235.55,235.47,2.92]
[1732067283423,12.74,235.62,235.48,2.92]
[1732067284421,2.1195,235.58,235.48,2.92]
[1732067284620,12.74,235.62,235.48,2.92]
[1732067285626,2.1201,235.52,235.48,2.92]
[1732067286028,2.1204,235.49,235.44,2.4309]
[1732067286225,12.74,235.59,235.45,2.92]
[1732067286525,14.86710074,235.59,235.46,2.92]
[1732067286823,31.37715667,235.59,235.43,2.92]
[1732067287019,12.74,235.57,235.43,2.92]
[1732067287824,15.66,235.57,235.38,16.51005593]
[1732067288022,12.74,235.54,235.39,2.92]
[1732067288428,2.1203,235.5,235.39,2.92]
[1732067288628,23.12545289,235.49,235.34,13.30545289]
[1732067289023,23.12545289,235.49,235.34,10.38545289]
[1732067289221,23.12545289,235.49,235.24,30.54]
[1732067289222,23.12545289,235.46,235.31,13.30545289]
[1732067289735,23.12545289,235.46,235.31,2.92]
[1732067290119,25.29374808,235.46,235.31,2.92]
[1732067290326,2.1218,235.33,235.27,10.38545289]
[1732067290519,23.12545289,235.43,235.27,13.30545289]
[1732067290520,26.04545289,235.43,235.27,13.30545289]
[1732067290731,14.82849887,235.42,235.27,2.92]
[1732067292227,2.1218,235.33,235.27,2.92]
[1732067292427,14.82849887,235.42,235.27,2.92]
[1732067292834,2.1219,235.32,235.27,2.92]
[1732067293031,14.82849887,235.42,235.27,2.92]
[1732067293428,2.1214,235.37,235.25,2.4956]
[1732067293632,14.82849887,235.42,235.25,2.4956]
[1732067293633,29.36718485,235.4,235.25,2.4956]
[1732067293928,2.122,235.31,235.25,2.4956]
[1732067294127,12.74,235.42,235.03,54.05961618]
[1732067294331,29.36718485,235.4,235.17,2.4762]
[1732067294525,29.36718485,235.4,235.21,16.62718485]
[1732067294725,2.1222,235.29,235.21,16.62718485]
[1732067294927,2.14186096,235.37,235.21,16.62718485]
[1732067295131,29.36718485,235.4,235.21,16.62718485]
[1732067295333,2.1223,235.27,235.21,16.62718485]
[1732067296330,2.11831963,235.37,235.21,16.62718485]
[1732067296331,2.1225,235.25,235.21,16.62718485]
[1732067298036,2.1227,235.23,235.21,16.62718485]
[1732067298331,32.28718485,235.36,235.17,22.02338485]
[1732067298733,32.28718485,235.36,235.09,1.2674]
[1732067298734,12.74,235.31,235.13,16.62718485]
[1732067299038,12.74,235.29,235.11,2.92]
[1732067299235,12.74,235.27,235.1,2.92]
[1732067299736,2.1234,235.15,235.1,2.92]
[1732067299935,12.74,235.27,235.1,2.92]
[1732067300131,2.1228,235.22,235.1,2.92]
[1732067300332,12.74,235.27,235.1,2.92]
[1732067301032,12.74,235.27,235.09,16.62718485]
[1732067301536,2.1234,235.15,235.09,18.75108485]
[1732067301833,2.1234,235.15,234.92,8.52271963]
[1732067301834,2.92,235.15,234.98,16.62718485]
[1732067302137,2.1241,235.07,234.98,19.11038485]
[1732067302336,2.92,235.15,234.98,19.11038485]
[1732067302538,2.92,235.15,234.99,2.1248]
[1732067303233,12.74,235.03,234.65,5.87490404]
[1732067303532,12.74,235.03,234.59,70.49884858]
[1732067303533,12.74,234.97,234.75,2.4415]
[1732067303734,12.74,234.95,234.75,2.4415]
[1732067304134,12.74,234.92,234.75,2.4415]
[1732067304339,12.74,234.88,234.77,6.64928011]
[1732067304538,15.68,234.88,234.77,6.64928011]
[1732067304732,2.1267,234.79,234.77,6.64928011]
[1732067304934,14.8667,234.79,234.77,1.39900011]
[1732067305533,19.56718485,234.81,234.61,16.62718485]
[1732067305534,29.36718485,234.81,234.61,16.62718485]
[1732067305838,12.74,234.81,234.66,2.94]
[1732067306535,12.74,234.83,234.66,2.94]
[1732067307038,2.1267,234.79,234.66,2.94]
[1732067307936,3.1259,234.87,234.74,2.94]
[1732067308141,1.0,234.87,234.74,2.94]
[1732067308435,0.20006,234.91,234.74,2.94]
[1732067308640,2.1258,234.89,234.74,2.94]
[1732067309130,2.1259,234.88,234.74,2.94]
[1732067310133,0.20006,234.91,234.74,2.94]
[1732067310333,2.1257,234.9,234.75,2.1269]
[1732067310543,0.20006,234.91,234.74,2.94]
[1732067312444,2.1258,234.89,234.74,2.94]
[1732067312836,2.32566,234.91,234.76,2.1268]
[1732067313438,2.32566,234.91,234.77,2.1268]
[1732067313835,0.20006,234.91,234.74,2.94]
[1732067314142,0.20006,234.91,234.81,16.62718485]
[1732067314341,0.20006,234.91,234.82,4.1362]
[1732067314538,0.20006,234.91,234.84,2.1261]
[1732067314734,0.20006,234.91,234.85,2.94]
[1732067316240,0.20006,234.91,234.85,5.066]
[1732067316543,0.20006,234.91,234.85,2.126]
[1732067316839,16.62718485,234.89,234.72,2.10408496]
[1732067317040,16.62718485,234.89,234.73,1.2476]
[1732067317344,2.1262,234.84,234.74,0.78166879]
[1732067317654,2.1262,234.84,234.73,1.2476]
[1732067318645,18.75328485,234.85,234.73,3.3747]
[1732067318847,16.62718485,234.85,234.73,3.3747]
[1732067319149,2.1268,234.78,234.67,2.1276]
[1732067319341,29.36718485,234.85,234.68,0.78187763]
[1732067319561,12.74,234.8,234.69,0.78187763]
[1732067319749,2.1269,234.76,234.65,2.1279]
[1732067319947,12.74,234.8,234.66,0.78196978]
[1732067320248,12.74,234.8,234.67,0.78196978]
[1732067320249,2.1269,234.76,234.67,0.78196978]
[1732067320440,12.74,234.82,234.68,0.78198375]
[1732067320740,2.94,234.83,234.66,2.94]
[1732067320741,2.127,234.75,234.69,0.78198375]
[1732067320945,12.74,234.8,234.66,2.94]
[1732067321139,12.74,234.8,234.67,0.78196373]
[1732067321344,2.1266,234.79,234.69,2.1275]
[1732067321746,2.94,234.83,234.66,2.94]
[1732067321955,2.1264,234.82,234.73,2.1271]
[1732067322140,16.62718485,234.85,234.67,16.62718485]
[1732067322352,2.94,234.88,234.68,0.78190517]
[1732067322544,2.1259,234.87,234.76,2.1268]
[1732067322744,2.94,234.88,234.75,2.94]
[1732067323439,2.126,234.86,234.76,2.1268]
[1732067323639,2.94,234.88,234.76,2.1268]
[1732067324146,2.94,234.88,234.75,2.94]
[1732067324351,2.94,234.88,234.79,2.1266]
[1732067324553,16.62718485,234.89,234.79,2.1266]
[1732067325350,2.1259,234.87,234.79,2.1266]
[1732067326151,16.62718485,234.89,234.76,2.5941]
[1732067326450,16.62718485,234.89,234.76,4.7209]
[1732067326451,2.1262,234.84,234.76,4.7209]
[1732067327054,2.1262,234.84,234.76,2.5941]
[1732067327256,15.68,234.93,234.76,2.5941]
[1732067327452,32.30718485,234.93,234.76,2.5941]
[1732067327653,29.36718485,234.93,234.76,2.5941]
[1732067328151,2.1259,234.88,234.76,2.5941]
[1732067328459,29.36718485,234.93,234.76,2.5941]
[1732067329054,2.1261,234.86,234.76,2.5941]
[1732067329256,29.36718485,234.93,234.76,2.5941]
[1732067329453,2.1259,234.87,234.8,2.1265]
[1732067330250,29.36718485,234.93,234.7,2.94]
[1732067330251,16.62718485,234.89,234.7,2.94]
[1732067330558,16.62718485,234.89,234.72,1.1979]
[1732067330752,2.126,234.86,234.8,2.1265]
[1732067330948,29.36718485,234.93,234.8,2.1265]
[1732067331355,2.1259,234.88,234.81,2.1264]
[1732067331558,29.36718485,234.93,234.78,1.2517]
[1732067331954,2.1258,234.89,234.79,2.1266]
[1732067332154,29.36718485,234.93,234.78,1.2517]
[1732067332956,29.36718485,234.93,234.79,2.1266]
[1732067333857,2.126,234.87,234.8,2.1265]
[1732067334152,29.36718485,234.93,234.8,2.1265]
[1732067334351,29.36718485,234.93,234.78,1.2517]
[1732067334553,2.126,234.86,234.79,2.1266]
[1732067334759,29.36718485,234.93,234.79,2.1266]
[1732067335058,29.36718485,234.93,234.78,1.2517]
[1732067335253,2.126,234.87,234.8,2.1265]
[1732067335453,29.36718485,234.93,234.8,2.1265]
[1732067336253,12.74,234.95,234.78,1.2517]
[1732067336455,2.1254,234.91,234.78,1.2517]
[1732067336659,29.54279485,235.0,234.79,2.05846525]
[1732067336963,29.54279485,235.0,234.89,2.1255]
[1732067337162,2.125,234.95,234.86,2.78]
[1732067337861,29.54279485,235.0,234.86,2.78]
[1732067338065,0.17561,235.0,234.87,1.1937]
[1732067338864,0.17561,235.0,234.96,2.1249]
[1732067339166,0.17561,235.0,234.89,2.78]
[1732067339355,0.17561,235.0,234.87,1.1937]
[1732067339553,0.17561,235.0,234.79,1.2768]
[1732067339554,12.74,234.95,234.79,1.2768]
[1732067339758,12.74,234.95,234.8,1.1937]
[1732067340760,29.54279485,235.0,234.81,1.56314715]
[1732067340971,0.17561,235.0,234.82,0.78157237]
[1732067341267,2.1249,234.97,234.89,2.1255]
[1732067341462,2.1249,234.97,234.88,2.78]
[1732067341866,2.1249,234.97,234.91,2.1253]
[1732067342260,0.17561,235.0,234.89,1.2951]
[1732067342562,0.17561,235.0,234.9,0.78128005]
[1732067342762,19.40718485,235.12,234.92,16.62718485]
[1732067343069,16.62718485,235.12,235.0,2.1245]
[1732067343266,16.62718485,235.12,234.98,2.78]
[1732067343966,16.62718485,235.12,234.99,2.1245]
[1732067344264,29.36718485,235.12,234.98,2.78]
[1732067344767,16.62718485,235.12,234.98,2.78]
[1732067345164,2.1237,235.1,235.02,2.1243]
[1732067345370,16.62718485,235.16,234.98,2.78]
[1732067345568,16.62718485,235.2,235.0,16.62718485]
[1732067345771,16.62718485,235.2,235.05,2.124]
[1732067345966,16.62718485,235.2,235.06,1.2868]
[1732067346561,2.78,235.21,235.06,1.2868]
[1732067346867,16.62718485,235.24,235.06,1.2868]
[1732067347062,16.62718485,235.24,235.11,2.1235]
[1732067347387,16.62718485,235.24,235.12,2.78]
[1732067348096,2.1233,235.14,235.12,2.78]
[1732067348689,16.62718485,235.24,235.12,2.78]
[1732067348887,2.1232,235.15,235.08,4.9038]
[1732067349794,2.1235,235.12,235.06,1.2868]
[1732067350001,15.52,235.25,235.06,1.2868]
[1732067350002,16.62718485,235.16,235.06,1.2868]
[1732067350402,2.1237,235.1,235.06,1.2868]
[1732067351906,16.62718485,235.12,235.01,1.2417]
[1732067352098,29.36718485,235.12,234.97,1.27]
[1732067352395,2.1242,235.04,234.97,1.27]
[1732067352593,29.36718485,235.12,234.97,1.27]
[1732067353293,29.36718485,235.07,234.93,1.2432]
[1732067353485,2.78,235.06,234.93,1.2432]
[1732067354875,2.1247,234.99,234.93,1.2432]
[1732067355375,2.78,235.06,234.93,1.2432]
[1732067357184,2.1242,235.04,234.98,2.1247]
[1732067357375,19.40718485,235.11,234.96,2.78]
[1732067357776,2.1242,235.04,234.96,2.78]
[1732067358275,32.14718485,235.11,234.93,1.2432]
[1732067358673,16.62718485,235.07,234.93,1.2432]
[1732067358884,2.1243,235.03,234.93,1.2432]
[1732067359179,16.62718485,235.07,234.93,1.2432]
[1732067360673,29.36718485,235.07,234.9,1.3013]
[1732067360879,16.62718485,235.03,234.89,1.1838]
[1732067361080,2.78,235.02,234.89,1.1838]
[1732067361281,2.1247,234.99,234.89,3.3093]
[1732067361477,2.78,235.02,234.89,3.3093]
[1732067362883,2.78,235.02,234.9,2.1254]
[1732067363483,12.74,235.14,234.89,1.1838]
[1732067363484,2.78,235.07,234.89,1.1838]
[1732067363683,16.62718485,235.11,234.89,1.1838]
[1732067363684,19.40718485,235.11,234.89,1.1838]
[1732067363884,12.74,235.06,234.89,3.3092]
[1732067364182,19.40718485,235.11,234.89,1.1838]
[1732067364578,19.40718485,235.11,234.92,16.62718485]
[1732067364579,16.62718485,235.11,234.92,16.62718485]
[1732067364784,30.7955,235.16,234.92,16.62718485]
[1732067364785,2.76,235.1,234.92,16.62718485]
[1732067364981,2.76,235.1,234.96,16.62718485]
[1732067365188,2.76,235.1,235.02,2.1243]
[1732067365888,2.76,235.14,235.02,2.1243]
[1732067366182,2.1237,235.09,235.01,2.1244]
[1732067366377,2.76,235.14,235.01,2.1244]
[1732067367180,2.1239,235.08,235.01,2.1244]
[1732067367386,2.1239,235.08,235.02,2.1243]
[1732067368387,16.62718485,235.19,235.0,16.62718485]
[1732067368594,2.76,235.17,235.01,1.2137]
[1732067368986,2.124,235.07,235.01,3.3381]
[1732067369288,2.124,235.07,235.01,1.2137]
[1732067370284,2.124,235.07,235.02,2.1243]
[1732067370592,2.1238,235.08,235.02,2.1243]
[1732067370787,2.76,235.17,235.04,2.1241]
[1732067370989,2.1234,235.13,235.05,2.76]
[1732067371291,2.76,235.22,235.05,2.76]
[1732067371588,19.38718485,235.23,235.1,2.1236]
[1732067372388,2.1228,235.2,235.1,2.1236]
[1732067372587,16.80248485,235.27,235.13,2.1233]
[1732067372893,2.76,235.26,235.08,16.62718485]
[1732067373094,2.76,235.26,235.09,1.281]
[1732067373589,2.76,235.26,235.12,2.1234]
[1732067373789,2.76,235.26,235.09,1.281]
[1732067373992,2.76,235.26,235.1,2.76]
[1732067374190,2.76,235.26,235.1,3.9877]
[1732067374588,2.76,235.26,235.13,2.1233]
[1732067375491,2.76,235.26,235.14,2.1232]
[1732067375890,0.1739,235.31,235.1,3.9877]
[1732067375891,29.36718485,235.35,235.16,16.62718485]
[1732067376096,19.38718485,235.35,235.17,4.002]
[1732067376394,0.1733,235.37,235.17,4.002]
[1732067376395,2.1219,235.3,235.2,16.62718485]
[1732067376594,2.1219,235.3,235.25,2.1223]
[1732067376798,2.1219,235.3,235.25,2.76]
[1732067376996,29.36718485,235.39,235.17,1.242]
[1732067377200,16.62718485,235.35,235.18,2.76]
[1732067377390,16.62718485,235.35,235.21,2.1226]
[1732067377591,2.122,235.28,235.18,19.38718485]
[1732067377794,16.62718485,235.35,235.2,2.1227]
[1732067377992,16.62718485,235.35,235.18,19.38718485]
[1732067378195,16.62718485,235.35,235.19,2.76]
[1732067378495,16.62718485,235.35,235.2,2.1227]
[1732067378794,2.1221,235.28,235.19,2.76]
[1732067378991,16.62718485,235.35,235.21,2.1226]
[1732067379393,2.1222,235.26,235.19,4.8827]
[1732067380391,2.1222,235.26,235.2,2.1227]
[1732067381097,2.1222,235.26,235.19,2.76]
[1732067381292,16.62718485,235.31,235.17,1.242]
[1732067381493,8.62425645,235.3,235.17,1.242]
[1732067381893,2.1228,235.2,235.14,2.76]
[1732067382097,12.74,235.3,235.14,2.76]
[1732067382301,12.74,235.24,234.98,2.1246]
[1732067382603,12.74,235.2,235.01,16.62718485]
[1732067382799,2.76,235.19,235.03,2.1242]
[1732067382997,15.5,235.19,235.01,16.62718485]
[1732067383201,15.5,235.19,235.01,2.76]
[1732067383394,29.36718485,235.17,235.01,2.76]
[1732067384003,2.1234,235.13,235.01,2.76]
[1732067384203,29.36718485,235.17,235.01,2.76]
[1732067384597,2.1234,235.13,235.01,2.76]
[1732067384797,21.35600594,235.16,235.01,2.76]
[1732067384997,8.61600594,235.15,235.01,2.76]
[1732067385200,8.61600594,235.15,234.99,3.3457]
[1732067385397,8.61600594,235.15,235.0,2.76]
[1732067386005,2.124,235.06,235.0,2.76]
[1732067387404,12.74,235.16,235.01,2.1244]
[1732067387605,8.61810783,235.15,235.01,16.62718485]
[1732067387904,2.76,235.19,235.01,16.62718485]
[1732067388206,8.61946864,235.18,235.01,16.62718485]
[1732067388407,2.1236,235.11,235.01,16.62718485]
[1732067388906,2.1236,235.11,235.05,2.124]
[1732067389706,8.61946864,235.18,235.01,16.62718485]
[1732067389909,2.1234,235.13,235.01,16.62718485]
[1732067390204,2.76,235.2,235.01,16.62718485]
[1732067390712,8.61744611,235.19,235.01,16.62718485]
[1732067391504,8.61744611,235.19,235.05,16.62718485]
[1732067391898,2.1234,235.13,235.06,2.1239]
[1732067392101,2.1234,235.13,235.07,2.76]
[1732067392609,2.1234,235.13,235.07,4.8839]
[1732067393907,2.1234,235.13,234.99,1.2211]
[1732067393908,16.62718485,235.17,234.99,1.2211]
[1732067394208,2.72,235.18,234.99,1.2211]
[1732067394209,29.36718485,235.13,234.99,1.2211]
[1732067394804,2.1243,235.03,234.99,1.2211]
[1732067395012,29.36718485,235.13,234.99,1.2211]
[1732067395214,29.54228485,235.17,235.0,2.72]
[1732067396012,2.1234,235.12,235.0,4.8444]
[1732067396313,29.54228485,235.17,235.0,4.8444]
[1732067396606,29.54228485,235.17,235.0,2.72]
[1732067396808,29.54228485,235.17,235.02,2.1243]
[1732067398215,29.54228485,235.17,235.0,2.1244]
[1732067398412,29.54228485,235.17,234.98,2.72]
[1732067398611,29.54228485,235.17,234.99,2.72]
[1732067398815,2.1241,235.06,235.0,2.1245]
[1732067399114,2.1241,235.06,234.99,2.72]
[1732067399506,2.1241,235.06,234.94,16.62718485]